fUSD/lending_fUSD_20260703
["ID","MTS","AMOUNT","RATE_DAILY","PERIOD"]
[426951965,1783051832000,-217.27301694,0.00016912,7]
[426951958,1783051832000,-647.72,0.00016438,2]
[426951962,1783051832000,-250.0,0.00016499,2]
[426951952,1783051832000,-150.0,0.00016308,7]
[426951964,1783051832000,-250.0,0.000165,2]
[426951960,1783051832000,-182.764053,0.00016499,2]
[426951967,1783051832000,-150.0,0.00016912,7]
[426951950,1783051832000,-150.0,0.00016308,7]
[426951959,1783051832000,-163.92,0.00016438,2]
[426951968,1783051832000,-150.0,0.00016912,7]
[426951985,1783051832000,-503.989,0.0002,30]
[426951972,1783051832000,-33522.27,0.00019055,2]
[426951973,1783051832000,-7937.48,0.00019239,2]
[426951943,1783051832000,-500.0,0.00016,3]
[426951971,1783051832000,-591.33,0.000182,2]
[426951970,1783051832000,-3128.90475802,0.00017916,2]
[426951974,1783051832000,-2213.15,0.00019313,2]
[426951976,1783051832000,-1139.14,0.00019574,2]
[426951979,1783051832000,-339.48223814,0.00019581,2]
[426951978,1783051832000,-500.0,0.00019581,2]
[426951977,1783051832000,-279.82741271,0.00019581,2]
[426951975,1783051832000,-3769.18,0.0001949,2]
[426951969,1783051832000,-279.82741272,0.00017836,3]
[426951945,1783051832000,-150.0,0.00016308,7]
[426951938,1783051832000,-150.0,0.00015855,7]
[426951948,1783051832000,-150.0,0.00016308,7]
[426951918,1783051832000,-45.51385498,0.0001505,2]
[426951921,1783051832000,-771.74341411,0.000151,2]
[426951917,1783051832000,-500.0,0.00015,2]
[426951920,1783051832000,-271.2587543,0.000151,2]
[426951919,1783051832000,-204.48614502,0.0001505,2]
[426951923,1783051832000,-2056.3990545,0.0001516,2]
[426951927,1783051832000,-150.11433658,0.000154,2]
[426951922,1783051832000,-150.0,0.00015149,2]
[426951924,1783051832000,-271.2587543,0.0001516,2]
[426951925,1783051832000,-303.0,0.000152,2]
[426951926,1783051832000,-121.14441772,0.000154,2]
[426951947,1783051832000,-150.0,0.00016308,7]
[426951929,1783051832000,-150.0,0.00015402,7]
[426951933,1783051832000,-0.60223104,0.0001575,2]
[426951931,1783051832000,-150.0,0.00015402,7]
[426951934,1783051832000,-299.57776896,0.0001575,2]
[426951930,1783051832000,-150.0,0.00015402,7]
[426951932,1783051832000,-303.0,0.000157,2]
[426951936,1783051832000,-562.84776896,0.00015855,2]
[426951935,1783051832000,-0.42223104,0.00015855,2]
[426951940,1783051832000,-150.0,0.00015855,7]
[426951941,1783051832000,-150.0,0.00015855,7]
[426951956,1783051832000,-632.94,0.00016438,2]
[426951954,1783051832000,-176.18279309,0.00016308,7]
[426951928,1783051832000,-150.0,0.00015402,7]
[426951980,1783051832000,-963.09,0.00019631,2]
[426951990,1783051832000,-500.0,0.00020401,2]
[426951984,1783051832000,-1000.0,0.0001998,2]
[426952008,1783051832000,-340.0,0.00021744,2]
[426952010,1783051832000,-340.0,0.00021744,2]
[426952017,1783051832000,-340.0,0.00021744,2]
[426952015,1783051832000,-340.0,0.00021744,2]
[426952020,1783051832000,-340.0,0.00021744,2]
[426952018,1783051832000,-340.0,0.00021744,2]
[426952016,1783051832000,-340.0,0.00021744,2]
[426952021,1783051832000,-340.0,0.00021744,2]
[426952023,1783051832000,-340.0,0.00021744,2]
[426952025,1783051832000,-340.0,0.00021744,2]
[426952026,1783051832000,-340.0,0.00021744,2]
[426952024,1783051832000,-340.0,0.00021744,2]
[426952027,1783051832000,-340.0,0.00021744,2]
[426952022,1783051832000,-340.0,0.00021744,2]
[426952028,1783051832000,-340.0,0.00021744,2]
[426952032,1783051832000,-340.0,0.00021744,2]
[426952031,1783051832000,-340.0,0.00021744,2]
[426952033,1783051832000,-340.0,0.00021744,2]
[426952030,1783051832000,-340.0,0.00021744,2]
[426952029,1783051832000,-340.0,0.00021744,2]
[426952034,1783051832000,-340.0,0.00021744,2]
[426952035,1783051832000,-340.0,0.00021744,2]
[426951983,1783051832000,-10500.02,0.00019946,2]
[426952009,1783051832000,-340.0,0.00021744,2]
[426952013,1783051832000,-340.0,0.00021744,2]
[426952019,1783051832000,-340.0,0.00021744,2]
[426952011,1783051832000,-340.0,0.00021744,2]
[426951982,1783051832000,-850.0,0.00019946,2]
[426951981,1783051832000,-250.50660075,0.0001982,2]
[426951986,1783051832000,-500.0,0.0002,3]
[426951987,1783051832000,-1026.41874077,0.000201,2]
[426951988,1783051832000,-187.16,0.00020236,2]
[426952012,1783051832000,-340.0,0.00021744,2]
[426951989,1783051832000,-150.0,0.00020401,2]
[426951993,1783051832000,-2000.0,0.00020722,2]
[426951991,1783051832000,-478.72305457,0.00020675,2]
[426951994,1783051832000,-1445.0,0.00020943,2]
[426951996,1783051832000,-465.86437115,0.00021165,2]
[426951998,1783051832000,-586.77,0.00021273,2]
[426951992,1783051832000,-2438.87,0.00020709,2]
[426951995,1783051832000,-150.0,0.00021,2]
[426951997,1783051832000,-2567.37,0.00021273,2]
[426952014,1783051832000,-340.0,0.00021744,2]
[426952007,1783051832000,-340.0,0.00021744,2]
[426952004,1783051832000,-6541.03,0.00021534,2]
[426952006,1783051832000,-340.0,0.00021744,2]
[426952002,1783051832000,-873.75351738,0.00021487,2]
[426952005,1783051832000,-856.8329393,0.00021729,2]
[426952001,1783051832000,-9985.44,0.0002128,2]
[426952000,1783051832000,-1000.0,0.00021278,2]
[426951999,1783051832000,-11667.11,0.00021273,2]
[426952003,1783051832000,-782.3293832,0.00021499,2]
[426952049,1783051833000,-963.09,0.00022085,2]
[426952042,1783051833000,-1729.0,0.00022001,2]
[426952053,1783051833000,-1015.18,0.00022466,2]
[426952047,1783051833000,-151.0,0.0002205,2]
[426952046,1783051833000,-151.0,0.0002205,2]
[426952044,1783051833000,-151.0,0.0002205,2]
[426952045,1783051833000,-151.0,0.0002205,2]
[426952038,1783051833000,-157.09,0.00021789,2]
[426952040,1783051833000,-150.0,0.00021918,2]
[426952041,1783051833000,-5000.0,0.00021918,2]
[426952039,1783051833000,-200.0,0.0002179,2]
[426952037,1783051833000,-340.0,0.00021744,2]
[426952036,1783051833000,-340.0,0.00021744,2]
[426952050,1783051833000,-30896.74280253,0.00022331,2]
[426952043,1783051833000,-222.32720956,0.0002205,2]
[426952054,1783051833000,-1121.79638143,0.00022529,2]
[426952067,1783051833000,-387.105,0.00022562,2]
[426952051,1783051833000,-797.39,0.00022466,2]
[426952048,1783051833000,-155.55451546,0.0002205,2]
[426952068,1783051833000,-546.276,0.00022562,2]
[426952066,1783051833000,-320.124,0.00022562,2]
[426952065,1783051833000,-752.34234826,0.00022562,2]
[426952064,1783051833000,-225.63280506,0.00022562,2]
[426952062,1783051833000,-9999.99,0.00022562,2]
[426952061,1783051833000,-415.86482925,0.00022562,2]
[426952063,1783051833000,-9999.99,0.00022562,2]
[426952056,1783051833000,-499.99,0.00022562,2]
[426952058,1783051833000,-299.99,0.00022562,7]
[426952059,1783051833000,-9999.99,0.00022562,2]
[426952057,1783051833000,-150.99,0.00022562,2]
[426952055,1783051833000,-9999.99,0.00022562,2]
[426952052,1783051833000,-900.33,0.00022466,2]
[426952060,1783051833000,-9584.12517075,0.00022562,2]
[426952079,1783051838000,-282.21813529,0.0002233,2]
[426952087,1783051838000,-500.0,0.0002233,2]
[426952088,1783051838000,-464.91645097,0.0002233,2]
[426952086,1783051838000,-500.0,0.0002233,2]
[426952085,1783051838000,-500.0,0.0002233,2]
[426952080,1783051838000,-315.28103156,0.0002233,2]
[426952084,1783051838000,-500.0,0.0002233,2]
[426952082,1783051838000,-500.0,0.0002233,2]
[426952083,1783051838000,-321.6685791,0.0002233,2]
[426952073,1783051838000,-500.0,0.0002233,2]
[426952076,1783051838000,-33.64986201,0.0002233,2]
[426952077,1783051838000,-466.35013799,0.0002233,2]
[426952078,1783051838000,-217.78186471,0.0002233,2]
[426952072,1783051838000,-166.32,0.00018992,2]
[426952074,1783051838000,-252.01054471,0.0002233,2]
[426952071,1783051838000,-204.378372,0.00018992,2]
[426952075,1783051838000,-247.98945529,0.0002233,2]
[426952070,1783051838000,-1125.241628,0.00018992,2]
[426952089,1783051838000,-35.08354903,0.0002233,2]
[426952081,1783051838000,-500.0,0.0002233,2]
[426952090,1783051838000,-500.0,0.0002233,2]
[426952110,1783051838000,-500.0,0.0002233,2]
[426952091,1783051838000,-162.70716841,0.0002233,2]
[426952092,1783051838000,-500.0,0.0002233,2]
[426952107,1783051838000,-500.0,0.0002233,2]
[426952105,1783051838000,-500.0,0.0002233,2]
[426952111,1783051838000,-500.0,0.0002233,2]
[426952109,1783051838000,-500.0,0.0002233,2]
[426952106,1783051838000,-500.0,0.0002233,2]
[426952108,1783051838000,-500.0,0.0002233,2]
[426952100,1783051838000,-500.0,0.0002233,2]
[426952103,1783051838000,-500.0,0.0002233,2]
[426952112,1783051838000,-904.65522139,0.00022562,2]
[426952099,1783051838000,-500.0,0.0002233,2]
[426952104,1783051838000,-328.36131657,0.0002233,2]
[426952096,1783051838000,-500.0,0.0002233,2]
[426952098,1783051838000,-500.0,0.0002233,2]
[426952094,1783051838000,-500.0,0.0002233,2]
[426952093,1783051838000,-500.0,0.0002233,2]
[426952095,1783051838000,-500.0,0.0002233,2]
[426952097,1783051838000,-500.0,0.0002233,2]
[426952102,1783051838000,-500.0,0.0002233,2]
[426952101,1783051838000,-500.0,0.0002233,2]
[426952154,1783051840000,-1041.17540941,0.00022562,2]
[426952153,1783051840000,-1124.99498242,0.00022562,2]
[426952193,1783051843000,-261.04942051,0.000242,2]
[426952194,1783051843000,-1930.86536509,0.000242,2]
[426952190,1783051843000,-4000.0,0.0002411,2]
[426952189,1783051843000,-200.0,0.0002411,2]
[426952188,1783051843000,-300.0,0.0002411,2]
[426952187,1783051843000,-168.877312,0.00024048,14]
[426952195,1783051843000,-201.00691423,0.000242,2]
[426952186,1783051843000,-223.001275,0.0002401,14]
[426952184,1783051843000,-157.09,0.00023968,2]
[426952192,1783051843000,-163.241819,0.00024173,14]
[426952198,1783051843000,-261.04942051,0.000244,2]
[426952207,1783051843000,-2304.16091547,0.00024667,2]
[426952197,1783051843000,-155.42114841,0.00024397,2]
[426952199,1783051843000,-2131.87227932,0.000244,2]
[426952201,1783051843000,-1852.42,0.00024529,2]
[426952200,1783051843000,-502.0,0.00024411,2]
[426952203,1783051843000,-671.53647703,0.000246,2]
[426952204,1783051843000,-168.12,0.00024658,2]
[426952206,1783051843000,-154.82,0.00024658,2]
[426952202,1783051843000,-963.09,0.00024539,2]
[426952205,1783051843000,-1000.0,0.00024658,2]
[426952185,1783051843000,-2304.16091547,0.00024,2]
[426952196,1783051843000,-2304.16091547,0.00024333,2]
[426952183,1783051843000,-1302.83246646,0.00023946,2]
[426952175,1783051843000,-2131.87227932,0.000237,2]
[426952182,1783051843000,-170.39,0.00023933,2]
[426952159,1783051843000,-4112.78423346,0.00022562,2]
[426952164,1783051843000,-2000.0,0.00023312,2]
[426952161,1783051843000,-2304.16091547,0.00023,2]
[426952162,1783051843000,-150.0,0.00023014,2]
[426952160,1783051843000,-999.99,0.00022562,2]
[426952163,1783051843000,-1683.42040998,0.00023194,2]
[426952166,1783051843000,-177.72727883,0.000234,2]
[426952165,1783051843000,-2304.16091547,0.00023333,2]
[426952167,1783051843000,-160.0,0.00023425,2]
[426952171,1783051843000,-4000.0,0.00023522,2]
[426952179,1783051843000,-261.04942051,0.000239,2]
[426952168,1783051843000,-216.74224685,0.00023425,2]
[426952170,1783051843000,-2131.87227932,0.000235,2]
[426952210,1783051843000,-2131.87227932,0.000247,2]
[426952172,1783051843000,-2304.16091547,0.00023667,2]
[426952174,1783051843000,-261.04942051,0.000237,2]
[426952173,1783051843000,-3594.04015001,0.00023685,2]
[426952177,1783051843000,-157.53857628,0.00023765,2]
[426952176,1783051843000,-177.72727883,0.000237,2]
[426952180,1783051843000,-2131.87227932,0.000239,2]
[426952178,1783051843000,-221.94320478,0.00023765,30]
[426952181,1783051843000,-334.501912,0.00023912,120]
[426952169,1783051843000,-261.04942051,0.000235,2]
[426952208,1783051843000,-526.49000114,0.00024671,2]
[426952191,1783051843000,-150.0,0.00024164,2]
[426952211,1783051843000,-2131.87227932,0.000249,2]
[426952238,1783051843000,-2304.16091547,0.00025667,2]
[426952240,1783051843000,-4000.0,0.00025874,2]
[426952243,1783051843000,-166.66,0.00025935,2]
[426952241,1783051843000,-154.82,0.00025898,7]
[426952242,1783051843000,-2000.0,0.00025902,2]
[426952245,1783051843000,-2304.16091547,0.00026,2]
[426952244,1783051843000,-150.0,0.00025997,5]
[426952248,1783051843000,-157.09,0.00026147,2]
[426952246,1783051843000,-42561.61,0.00026,2]
[426952247,1783051843000,-11391.0,0.0002613,2]
[426952249,1783051843000,-331.26359999,0.00026158,2]
[426952251,1783051843000,-171.29409417,0.00026158,2]
[426952252,1783051843000,-180.27260453,0.00026158,2]
[426952254,1783051843000,-150.06184041,0.00026158,2]
[426952256,1783051843000,-154.17518306,0.00026167,2]
[426952253,1783051843000,-360.82769029,0.00026158,2]
[426952255,1783051843000,-158.49074788,0.00026167,2]
[426952258,1783051843000,-216.81386539,0.00026189,2]
[426952257,1783051843000,-161.8887424,0.00026189,2]
[426952260,1783051843000,-671.53647702,0.00026214,2]
[426952259,1783051843000,-154.82,0.00026208,30]
[426952261,1783051843000,-634.45603404,0.00026256,2]
[426952209,1783051843000,-4000.0,0.00024698,2]
[426952239,1783051843000,-2131.87227932,0.000257,2]
[426952237,1783051843000,-154.82,0.00025588,2]
[426952250,1783051843000,-350.89091009,0.00026158,2]
[426952235,1783051843000,-4178.0,0.0002548,5]
[426952212,1783051843000,-165.6318,0.00024905,2]
[426952236,1783051843000,-286.0,0.0002552,2]
[426952213,1783051843000,-175.44545505,0.00024905,2]
[426952214,1783051843000,-180.41384515,0.00024905,2]
[426952217,1783051843000,-35467.84,0.00025,2]
[426952219,1783051843000,-2131.87227932,0.000251,2]
[426952216,1783051843000,-2304.16091547,0.00025,2]
[426952215,1783051843000,-154.82,0.00024968,7]
[426952220,1783051843000,-1281.09406742,0.000251,2]
[426952221,1783051843000,-154.82,0.00025278,30]
[426952222,1783051843000,-4000.0,0.00025286,2]
[426952223,1783051843000,-170.1,0.00025333,2]
[426952218,1783051843000,-496.99,0.00025,2]
[426952232,1783051843000,-500.0,0.00025479,2]
[426952226,1783051843000,-150.0,0.00025373,2]
[426952225,1783051843000,-151.0716215,0.00025356,14]
[426952227,1783051843000,-634.45603404,0.00025379,2]
[426952228,1783051843000,-2131.87227932,0.000254,2]
[426952230,1783051843000,-503.08979288,0.00025479,2]
[426952229,1783051843000,-504.39603169,0.00025479,2]
[426952233,1783051843000,-500.0,0.00025479,2]
[426952231,1783051843000,-500.0,0.00025479,2]
[426952224,1783051843000,-2304.16091547,0.00025333,2]
[426952234,1783051843000,-500.0,0.00025479,2]
[426952300,1783051844000,-159.89565831,0.00027025,2]
[426952299,1783051844000,-295.12918905,0.00027025,2]
[426952294,1783051844000,-202.64864471,0.00027003,2]
[426952298,1783051844000,-261.11115208,0.00027025,2]
[426952297,1783051844000,-231.096522,0.00027025,2]
[426952293,1783051844000,-219.90521869,0.00027003,2]
[426952295,1783051844000,-273.49393097,0.00027003,2]
[426952291,1783051844000,-283.41426384,0.00027003,2]
[426952302,1783051844000,-265.29114283,0.00027025,2]
[426952290,1783051844000,-308.35036613,0.00027003,2]
[426952296,1783051844000,-544.70686823,0.00027003,2]
[426952301,1783051844000,-323.77748481,0.00027025,2]
[426952317,1783051844000,-1052.12388156,0.00027356,14]
[426952303,1783051844000,-206.69182983,0.00027025,2]
[426952305,1783051844000,-213.27751407,0.00027025,2]
[426952306,1783051844000,-433.62773077,0.00027025,2]
[426952308,1783051844000,-203.55020607,0.00027025,2]
[426952310,1783051844000,-198.0,0.00027037,5]
[426952307,1783051844000,-222.56316656,0.00027025,2]
[426952311,1783051844000,-2213.15,0.00027039,2]
[426952312,1783051844000,-331.33,0.00027101,30]
[426952313,1783051844000,-634.45603404,0.00027133,2]
[426952314,1783051844000,-154.82,0.00027139,30]
[426952292,1783051844000,-206.16535041,0.00027003,2]
[426952315,1783051844000,-151.77330634,0.00027234,2]
[426952304,1783051844000,-216.24484267,0.00027025,2]
[426952288,1783051844000,-240.99107274,0.00027003,2]
[426952265,1783051844000,-155.42114839,0.00026587,2]
[426952286,1783051844000,-300.12368083,0.00026994,2]
[426952316,1783051844000,-703.31948151,0.00027356,14]
[426952264,1783051844000,-526.49000114,0.00026579,2]
[426952266,1783051844000,-211.60544451,0.00026587,4]
[426952262,1783051844000,-398.68039933,0.00026356,14]
[426952263,1783051844000,-154.82,0.00026518,2]
[426952267,1783051844000,-150.0,0.00026641,2]
[426952270,1783051844000,-963.09,0.00026993,120]
[426952269,1783051844000,-154.82,0.00026829,7]
[426952271,1783051844000,-496.89539999,0.00026994,2]
[426952268,1783051844000,-166.66,0.00026791,2]
[426952275,1783051844000,-360.54520905,0.00026994,2]
[426952274,1783051844000,-228.08234594,0.00026994,2]
[426952276,1783051844000,-203.73021027,0.00026994,2]
[426952278,1783051844000,-215.69286574,0.00026994,2]
[426952273,1783051844000,-260.11496383,0.00026994,2]
[426952277,1783051844000,-203.62701376,0.00026994,2]
[426952272,1783051844000,-526.33636514,0.00026994,2]
[426952279,1783051844000,-342.58818834,0.00026994,2]
[426952281,1783051844000,-165.95802016,0.00026994,2]
[426952282,1783051844000,-243.12478701,0.00026994,2]
[426952280,1783051844000,-541.24153544,0.00026994,2]
[426952289,1783051844000,-316.98149576,0.00027003,2]
[426952283,1783051844000,-240.16294461,0.00026994,2]
[426952287,1783051844000,-270.91445888,0.00027003,2]
[426952284,1783051844000,-164.45931824,0.00026994,2]
[426952285,1783051844000,-201.60177317,0.00026994,2]
[426952318,1783051844000,-1000.0,0.00027397,2]
[426952309,1783051844000,-223.46900474,0.00027025,2]
[426952325,1783051844000,-402.98370619,0.00027397,2]
[426952352,1783051844000,-307.39311488,0.00027551,2]
[426952350,1783051844000,-201.81985557,0.00027551,2]
[426952353,1783051844000,-438.54896515,0.00027551,2]
[426952351,1783051844000,-307.02062179,0.00027551,2]
[426952354,1783051844000,-331.91604031,0.00027551,2]
[426952356,1783051844000,-174.88246734,0.00027551,2]
[426952355,1783051844000,-230.323466,0.00027551,2]
[426952360,1783051844000,-198.37920873,0.00027551,2]
[426952358,1783051844000,-376.54627511,0.00027551,2]
[426952357,1783051844000,-448.36884951,0.00027551,2]
[426952359,1783051844000,-200.03256785,0.00027551,2]
[426952361,1783051844000,-178.44976154,0.00027551,2]
[426952362,1783051844000,-486.24957402,0.00027551,2]
[426952364,1783051844000,-415.55426177,0.00027551,2]
[426952363,1783051844000,-247.89079634,0.00027551,2]
[426952367,1783051844000,-403.20354635,0.00027551,2]
[426952365,1783051844000,-240.1459015,0.00027551,2]
[426952370,1783051844000,-156.73683637,0.00027551,2]
[426952371,1783051844000,-218.89427824,0.00027551,2]
[426952366,1783051844000,-480.32588921,0.00027551,2]
[426952369,1783051844000,-408.54972493,0.00027551,2]
[426952368,1783051844000,-448.5798272,0.00027551,2]
[426952373,1783051844000,-291.00074352,0.00027551,2]
[426952372,1783051844000,-450.18552124,0.00027551,2]
[426952322,1783051844000,-2000.46,0.00027397,10]
[426952348,1783051844000,-198.37483562,0.00027551,2]
[426952347,1783051844000,-721.65538058,0.00027551,2]
[426952374,1783051844000,-245.03891909,0.00027551,2]
[426952342,1783051844000,-374.73884712,0.00027551,2]
[426952349,1783051844000,-208.78698868,0.00027551,2]
[426952321,1783051844000,-168.12,0.00027397,2]
[426952320,1783051844000,-300.0,0.00027397,2]
[426952324,1783051844000,-201.49185309,0.00027397,2]
[426952323,1783051844000,-227.85402329,0.00027397,2]
[426952326,1783051844000,-154.82,0.00027449,2]
[426952329,1783051844000,-228.84,0.0002755,2]
[426952327,1783051844000,-516.74902409,0.000275,7]
[426952375,1783051844000,-166.05559641,0.00027551,2]
[426952328,1783051844000,-225.08,0.0002755,2]
[426952330,1783051844000,-154.82,0.0002755,2]
[426952334,1783051844000,-662.52719998,0.00027551,2]
[426952335,1783051844000,-701.78182019,0.00027551,2]
[426952319,1783051844000,-1500.0,0.00027397,2]
[426952333,1783051844000,-168.13190868,0.00027551,2]
[426952332,1783051844000,-178.75241628,0.0002755,2]
[426952331,1783051844000,-233.04435658,0.0002755,2]
[426952337,1783051844000,-456.16469188,0.00027551,2]
[426952338,1783051844000,-540.81781358,0.00027551,2]
[426952341,1783051844000,-162.36843023,0.00027551,2]
[426952340,1783051844000,-381.69927933,0.00027551,2]
[426952339,1783051844000,-413.38365967,0.00027551,2]
[426952344,1783051844000,-431.38573148,0.00027551,2]
[426952343,1783051844000,-407.46042055,0.00027551,2]
[426952345,1783051844000,-377.40775937,0.00027551,2]
[426952336,1783051844000,-520.22992765,0.00027551,2]
[426952346,1783051844000,-513.88228251,0.00027551,2]
[426952413,1783051845000,-500.0,0.00027582,7]
[426952412,1783051845000,-500.0,0.00027582,120]
[426952409,1783051845000,-510.63083339,0.00027582,120]
[426952407,1783051845000,-509.00243625,0.00027582,120]
[426952410,1783051845000,-389.82905594,0.00027582,120]
[426952408,1783051845000,-500.0,0.00027582,120]
[426952405,1783051845000,-500.0,0.00027582,7]
[426952404,1783051845000,-500.0,0.00027582,120]
[426952406,1783051845000,-500.0,0.00027582,120]
[426952411,1783051845000,-500.0,0.00027582,120]
[426952415,1783051845000,-522.22230417,0.00027583,2]
[426952420,1783051845000,-530.58228565,0.00027583,2]
[426952416,1783051845000,-250.00228691,0.00027583,2]
[426952418,1783051845000,-319.79131663,0.00027583,2]
[426952417,1783051845000,-590.25837809,0.00027583,2]
[426952419,1783051845000,-485.66622721,0.00027583,2]
[426952421,1783051845000,-420.38364464,0.00027583,2]
[426952423,1783051845000,-426.55502814,0.00027583,2]
[426952422,1783051845000,-432.48968534,0.00027583,2]
[426952424,1783051845000,-182.60241331,0.00027583,2]
[426952425,1783051845000,-455.70804658,0.00027583,2]
[426952403,1783051845000,-500.0,0.00027582,120]
[426952427,1783051845000,-445.12633312,0.00027583,2]
[426952414,1783051845000,-462.19304399,0.00027583,2]
[426952401,1783051845000,-938.68,0.00027561,30]
[426952390,1783051845000,-379.21838109,0.0002756,2]
[426952400,1783051845000,-272.35343411,0.0002756,2]
[426952428,1783051845000,-604.47555928,0.00027583,2]
[426952376,1783051845000,-182.73311069,0.00027551,2]
[426952378,1783051845000,-236.91,0.00027558,30]
[426952381,1783051845000,-203.76115448,0.0002756,2]
[426952377,1783051845000,-291.15,0.00027557,30]
[426952379,1783051845000,-403.89,0.00027559,30]
[426952380,1783051845000,-332.04,0.0002756,30]
[426952382,1783051845000,-541.82891777,0.0002756,2]
[426952383,1783051845000,-228.59372671,0.0002756,2]
[426952384,1783051845000,-481.98214549,0.0002756,2]
[426952386,1783051845000,-170.05658699,0.0002756,2]
[426952399,1783051845000,-546.98786194,0.0002756,2]
[426952385,1783051845000,-475.47224364,0.0002756,2]
[426952389,1783051845000,-566.82852769,0.0002756,2]
[426952392,1783051845000,-412.33070083,0.0002756,2]
[426952391,1783051845000,-231.73580641,0.0002756,2]
[426952393,1783051845000,-239.84481317,0.0002756,2]
[426952388,1783051845000,-432.3549036,0.0002756,2]
[426952394,1783051845000,-224.2899136,0.0002756,2]
[426952397,1783051845000,-213.11652044,0.0002756,2]
[426952396,1783051845000,-439.81043738,0.0002756,2]
[426952395,1783051845000,-266.92625106,0.0002756,2]
[426952402,1783051845000,-854.05,0.00027562,30]
[426952398,1783051845000,-405.29728941,0.0002756,2]
[426952387,1783051845000,-462.52554919,0.0002756,2]
[426952426,1783051845000,-650.44159616,0.00027583,2]
[426952436,1783051845000,-154.82,0.00027678,30]
[426952430,1783051845000,-446.93800948,0.00027583,2]
[426952461,1783051845000,-1423.5606,0.00027856,14]
[426952462,1783051845000,-5000.0,0.00027862,7]
[426952460,1783051845000,-5020.40807309,0.00027855,7]
[426952463,1783051845000,-154.82,0.00027872,30]
[426952465,1783051845000,-236.91,0.00027878,2]
[426952468,1783051845000,-938.68,0.0002788,2]
[426952466,1783051845000,-403.89,0.00027879,2]
[426952464,1783051845000,-291.15,0.00027877,2]
[426952469,1783051845000,-854.05,0.00027881,2]
[426952467,1783051845000,-332.04,0.0002788,2]
[426952471,1783051845000,-154.82,0.00027936,2]
[426952470,1783051845000,-6211.8995241,0.00027884,2]
[426952474,1783051845000,-782.3293832,0.00027998,2]
[426952473,1783051845000,-150.0,0.00027973,2]
[426952472,1783051845000,-411.54969022,0.00027953,2]
[426952475,1783051845000,-217.0,0.00028,2]
[426952431,1783051845000,-210.94541976,0.00027583,2]
[426952476,1783051845000,-301.0,0.00028,2]
[426952480,1783051845000,-152.0,0.00028,2]
[426952481,1783051845000,-152.0,0.00028,2]
[426952478,1783051845000,-268.0,0.00028,2]
[426952482,1783051845000,-1907.82995605,0.00028,2]
[426952479,1783051845000,-428.0,0.00028,2]
[426952459,1783051845000,-5000.0,0.00027854,7]
[426952454,1783051845000,-1231.0,0.00027831,2]
[426952477,1783051845000,-152.0,0.00028,2]
[426952456,1783051845000,-951.141,0.00027836,2]
[426952455,1783051845000,-6090.0,0.00027836,2]
[426952429,1783051845000,-407.10041213,0.00027583,2]
[426952433,1783051845000,-154.82,0.00027614,7]
[426952437,1783051845000,-411.54969022,0.00027679,2]
[426952435,1783051845000,-166.66,0.00027647,2]
[426952434,1783051845000,-898.49836323,0.00027639,2]
[426952440,1783051845000,-236.91,0.00027718,7]
[426952442,1783051845000,-332.04,0.0002772,7]
[426952438,1783051845000,-172.59248753,0.00027679,2]
[426952441,1783051845000,-403.89,0.00027719,7]
[426952439,1783051845000,-291.15,0.00027717,7]
[426952443,1783051845000,-938.68,0.0002772,7]
[426952432,1783051845000,-219.39348723,0.00027583,2]
[426952444,1783051845000,-854.05,0.00027721,7]
[426952453,1783051845000,-1279.0,0.00027831,2]
[426952445,1783051845000,-154.82,0.00027743,2]
[426952457,1783051845000,-286.0,0.0002784,2]